fUSD/lending_fUSD_20260529
["ID","MTS","AMOUNT","RATE_DAILY","PERIOD"]
[423330688,1780057905000,-1313.804465,0.00032877,7]
[423330675,1780057905000,-1520.774856,0.00032877,7]
[423330676,1780057905000,-268.489002,0.00032877,7]
[423330681,1780057905000,-1520.774856,0.00032877,7]
[423330674,1780057905000,-3448.347238,0.00032877,7]
[423330682,1780057905000,-151.0,0.00032877,7]
[423330677,1780057905000,-1520.774856,0.00032877,7]
[423330726,1780057906000,-791.394263,0.00032877,7]
[423330739,1780057906000,-151.0,0.00032877,7]
[423330736,1780057906000,-164.981848,0.00032877,7]
[423330738,1780057906000,-1298.256464,0.00032877,7]
[423330731,1780057906000,-2437.155188,0.00032877,7]
[423330733,1780057906000,-4261.342559,0.00032877,7]
[423330728,1780057906000,-4690.985121,0.00032877,7]
[423330729,1780057906000,-4690.985121,0.00032877,7]
[423330727,1780057906000,-2457.114843,0.00032877,7]
[423330720,1780057906000,-301.087025,0.00032877,7]
[423330725,1780057906000,-837.514918,0.00032877,7]
[423330723,1780057906000,-407.978857,0.00032877,7]
[423330730,1780057906000,-10581.108698,0.00032877,2]
[423330722,1780057906000,-1455.952705,0.00032877,7]
[423330721,1780057906000,-2457.114843,0.00032877,7]
[423330719,1780057906000,-215.572771,0.00032877,7]
[423330718,1780057906000,-791.394263,0.00032877,7]
[423330717,1780057906000,-837.514918,0.00032877,7]
[423330735,1780057906000,-363.791022,0.00032877,7]
[423330724,1780057906000,-4690.985121,0.00032877,7]
[423330734,1780057906000,-10581.108698,0.00032877,2]
[423330732,1780057906000,-1298.256464,0.00032877,7]
[423330737,1780057906000,-2437.155188,0.00032877,7]
[423330757,1780057906000,-363.791022,0.00032877,7]
[423330759,1780057906000,-151.0,0.00032877,7]
[423330755,1780057906000,-1579.94734,0.00032877,7]
[423330754,1780057906000,-1078.768343,0.00032877,7]
[423330752,1780057906000,-2437.155188,0.00032877,7]
[423330758,1780057906000,-1078.768343,0.00032877,7]
[423330753,1780057906000,-4261.342559,0.00032877,7]
[423330756,1780057906000,-164.981848,0.00032877,7]
[423330751,1780057906000,-1298.256464,0.00032877,7]
[423330746,1780057906000,-151.0,0.00032877,7]
[423330740,1780057906000,-4261.342559,0.00032877,7]
[423330749,1780057906000,-363.791022,0.00032877,7]
[423330748,1780057906000,-10581.108698,0.00032877,2]
[423330747,1780057906000,-4261.342559,0.00032877,7]
[423330760,1780057906000,-1579.94734,0.00032877,7]
[423330744,1780057906000,-2437.155188,0.00032877,7]
[423330745,1780057906000,-1298.256464,0.00032877,7]
[423330741,1780057906000,-10581.108698,0.00032877,2]
[423330742,1780057906000,-363.791022,0.00032877,7]
[423330743,1780057906000,-164.981848,0.00032877,7]
[423330750,1780057906000,-164.981848,0.00032877,7]
[423330806,1780057907000,-456.627833,0.00032877,7]
[423330805,1780057907000,-3080.825665,0.00032877,7]
[423330804,1780057907000,-179.484068,0.00032877,7]
[423330801,1780057907000,-3080.825665,0.00032877,7]
[423330803,1780057907000,-151.0,0.00032877,7]
[423330793,1780057907000,-1846.602261,0.00032877,7]
[423330799,1780057907000,-151.0,0.00032877,7]
[423330795,1780057907000,-7628.037144,0.00032877,7]
[423330815,1780057907000,-169.521393,0.00032877,7]
[423330798,1780057907000,-179.484068,0.00032877,7]
[423330808,1780057907000,-179.484068,0.00032877,7]
[423330809,1780057907000,-3080.825665,0.00032877,7]
[423330813,1780057907000,-456.627833,0.00032877,7]
[423330812,1780057907000,-3080.825665,0.00032877,7]
[423330807,1780057907000,-169.521393,0.00032877,7]
[423330796,1780057907000,-151.0,0.00032877,7]
[423330810,1780057907000,-456.627833,0.00032877,7]
[423330814,1780057907000,-169.521393,0.00032877,7]
[423330817,1780057907000,-389.419817,0.00032877,7]
[423330816,1780057907000,-389.419817,0.00032877,7]
[423330819,1780057907000,-389.419817,0.00032877,7]
[423330818,1780057907000,-151.0,0.00032877,7]
[423330820,1780057907000,-151.0,0.00032877,7]
[423330811,1780057907000,-169.521393,0.00032877,7]
[423330797,1780057907000,-1846.602261,0.00032877,7]
[423330792,1780057907000,-901.782342,0.00032877,7]
[423330794,1780057907000,-2409.272804,0.00032877,7]
[423330770,1780057907000,-7628.037144,0.00032877,7]
[423330771,1780057907000,-2463.996825,0.00032877,7]
[423330769,1780057907000,-2409.272804,0.00032877,7]
[423330773,1780057907000,-1078.768343,0.00032877,7]
[423330772,1780057907000,-256.045059,0.00032877,7]
[423330774,1780057907000,-151.0,0.00032877,7]
[423330775,1780057907000,-439.642687,0.00032877,7]
[423330776,1780057907000,-1579.94734,0.00032877,7]
[423330777,1780057907000,-2409.272804,0.00032877,7]
[423330782,1780057907000,-256.045059,0.00032877,7]
[423330779,1780057907000,-1846.602261,0.00032877,7]
[423330802,1780057907000,-456.627833,0.00032877,7]
[423330780,1780057907000,-2463.996825,0.00032877,7]
[423330778,1780057907000,-901.782342,0.00032877,7]
[423330784,1780057907000,-439.642687,0.00032877,7]
[423330783,1780057907000,-151.0,0.00032877,7]
[423330785,1780057907000,-1846.602261,0.00032877,7]
[423330790,1780057907000,-256.045059,0.00032877,7]
[423330791,1780057907000,-439.642687,0.00032877,7]
[423330786,1780057907000,-901.782342,0.00032877,7]
[423330789,1780057907000,-7628.037144,0.00032877,7]
[423330821,1780057907000,-389.419817,0.00032877,7]
[423330788,1780057907000,-2463.996825,0.00032877,7]
[423330787,1780057907000,-2409.272804,0.00032877,7]
[423330781,1780057907000,-7628.037144,0.00032877,7]
[423330822,1780057907000,-237.108608,0.00032877,7]
[423330800,1780057907000,-179.484068,0.00032877,7]
[423330823,1780057907000,-374.734968,0.00032877,7]
[423330856,1780057907000,-872.288163,0.00032877,7]
[423330858,1780057907000,-8342.200735,0.00032877,7]
[423330854,1780057907000,-8342.200735,0.00032877,7]
[423330852,1780057907000,-151.0,0.00032877,7]
[423330857,1780057907000,-2410.644145,0.00032877,7]
[423330855,1780057907000,-151.0,0.00032877,7]
[423330860,1780057907000,-538.171961,0.00032877,7]
[423330861,1780057907000,-872.288163,0.00032877,7]
[423330859,1780057907000,-471.623315,0.00032877,7]
[423330865,1780057907000,-8342.200735,0.00032877,7]
[423330862,1780057907000,-151.0,0.00032877,7]
[423330851,1780057907000,-872.288163,0.00032877,7]
[423330864,1780057907000,-2538.246273,0.00032877,7]
[423330869,1780057907000,-151.0,0.00032877,7]
[423330868,1780057907000,-872.288163,0.00032877,7]
[423330866,1780057907000,-471.623315,0.00032877,7]
[423330867,1780057907000,-538.171961,0.00032877,7]
[423330876,1780057907000,-2179.255896,0.00032877,7]
[423330873,1780057907000,-538.171961,0.00032877,7]
[423330874,1780057907000,-5339.370248,0.00032877,7]
[423330871,1780057907000,-2410.644145,0.00032877,7]
[423330824,1780057907000,-404.400508,0.00032877,7]
[423330875,1780057907000,-193.780905,0.00032877,7]
[423330870,1780057907000,-2538.246273,0.00032877,7]
[423330863,1780057907000,-2410.644145,0.00032877,7]
[423330853,1780057907000,-2190.158846,0.00032877,7]
[423330872,1780057907000,-471.623315,0.00032877,7]
[423330848,1780057907000,-2190.158846,0.00032877,7]
[423330850,1780057907000,-8342.200735,0.00032877,7]
[423330825,1780057907000,-770.56024,0.00032877,7]
[423330828,1780057907000,-199.216874,0.00032877,7]
[423330829,1780057907000,-404.400508,0.00032877,7]
[423330827,1780057907000,-374.734968,0.00032877,7]
[423330830,1780057907000,-841.64759,0.00032877,7]
[423330831,1780057907000,-770.56024,0.00032877,7]
[423330832,1780057907000,-374.734968,0.00032877,7]
[423330836,1780057907000,-841.64759,0.00032877,7]
[423330834,1780057907000,-1979.943684,0.00032877,7]
[423330833,1780057907000,-199.216874,0.00032877,7]
[423330835,1780057907000,-404.400508,0.00032877,7]
[423330826,1780057907000,-841.64759,0.00032877,7]
[423330837,1780057907000,-770.56024,0.00032877,7]
[423330847,1780057907000,-1979.943684,0.00032877,7]
[423330838,1780057907000,-2190.158846,0.00032877,7]
[423330841,1780057907000,-1979.943684,0.00032877,7]
[423330840,1780057907000,-374.734968,0.00032877,7]
[423330843,1780057907000,-770.56024,0.00032877,7]
[423330849,1780057907000,-1979.943684,0.00032877,7]
[423330844,1780057907000,-841.64759,0.00032877,7]
[423330842,1780057907000,-404.400508,0.00032877,7]
[423330845,1780057907000,-199.216874,0.00032877,7]
[423330839,1780057907000,-199.216874,0.00032877,7]
[423330846,1780057907000,-2190.158846,0.00032877,7]
[423330906,1780057908000,-700.0,0.00032986,30]
[423330908,1780057908000,-700.0,0.00032986,30]
[423330902,1780057908000,-700.0,0.00032986,30]
[423330909,1780057908000,-700.0,0.00032986,30]
[423330905,1780057908000,-700.0,0.00032986,30]
[423330907,1780057908000,-700.0,0.00032986,30]
[423330911,1780057908000,-700.0,0.00032986,30]
[423330910,1780057908000,-700.0,0.00032986,30]
[423330912,1780057908000,-700.0,0.00032986,30]
[423330904,1780057908000,-700.0,0.00032986,30]
[423330915,1780057908000,-700.0,0.00032986,30]
[423330921,1780057908000,-700.0,0.00032986,30]
[423330916,1780057908000,-700.0,0.00032986,30]
[423330913,1780057908000,-700.0,0.00032986,30]
[423330920,1780057908000,-700.0,0.00032986,30]
[423330917,1780057908000,-700.0,0.00032986,30]
[423330919,1780057908000,-700.0,0.00032986,30]
[423330918,1780057908000,-700.0,0.00032986,30]
[423330922,1780057908000,-700.0,0.00032986,30]
[423330923,1780057908000,-700.0,0.00032986,30]
[423330903,1780057908000,-700.0,0.00032986,30]
[423330924,1780057908000,-700.0,0.00032986,30]
[423330914,1780057908000,-700.0,0.00032986,30]
[423330900,1780057908000,-700.0,0.00032986,30]
[423330888,1780057908000,-200.0,0.000329,12]
[423330901,1780057908000,-700.0,0.00032986,30]
[423330925,1780057908000,-700.0,0.00032986,30]
[423330881,1780057908000,-486.49789824,0.00032877,7]
[423330877,1780057908000,-2538.246273,0.00032877,7]
[423330880,1780057908000,-471.623315,0.00032877,7]
[423330879,1780057908000,-3038.662354,0.00032877,7]
[423330878,1780057908000,-2410.644145,0.00032877,7]
[423330883,1780057908000,-152.0,0.00032889,7]
[423330882,1780057908000,-188.44606373,0.00032882,2]
[423330887,1780057908000,-164.34,0.000329,120]
[423330886,1780057908000,-513.94360888,0.000329,30]
[423330897,1780057908000,-400.0,0.00032955,2]
[423330884,1780057908000,-182.0,0.000329,120]
[423330891,1780057908000,-154.35513482,0.000329,120]
[423330890,1780057908000,-872.25866182,0.000329,120]
[423330889,1780057908000,-325.44992038,0.000329,120]
[423330893,1780057908000,-600.0,0.000329,12]
[423330892,1780057908000,-2000.0,0.000329,12]
[423330894,1780057908000,-1000.0,0.00032949,37]
[423330898,1780057908000,-401.92854931,0.00032955,2]
[423330896,1780057908000,-400.0,0.00032955,2]
[423330899,1780057908000,-163.0,0.00032979,11]
[423330895,1780057908000,-400.0,0.00032955,2]
[423330885,1780057908000,-219.12,0.000329,120]
[423330933,1780057908000,-700.0,0.00032986,30]
[423330973,1780057908000,-602.51100391,0.00033,120]
[423330926,1780057908000,-700.0,0.00032986,30]
[423330955,1780057908000,-259.83140186,0.00033,120]
[423330956,1780057908000,-269.64430708,0.00033,120]
[423330958,1780057908000,-170.28823604,0.00033,120]
[423330959,1780057908000,-213.67960762,0.00033,120]
[423330957,1780057908000,-628.10672029,0.00033,120]
[423330960,1780057908000,-182.79281631,0.00033,120]
[423330962,1780057908000,-248.21964374,0.00033,120]
[423330961,1780057908000,-176.18316648,0.00033,120]
[423330967,1780057908000,-210.00020313,0.00033,120]
[423330964,1780057908000,-370.66948364,0.00033,120]
[423330949,1780057908000,-1000.0,0.00032999,20]
[423330963,1780057908000,-445.97183341,0.00033,120]
[423330965,1780057908000,-168.40985704,0.00033,120]
[423330969,1780057908000,-1541.2576103,0.00033,120]
[423330934,1780057908000,-700.0,0.00032986,30]
[423330970,1780057908000,-331.28337941,0.00033,120]
[423330977,1780057908000,-152.54242575,0.00033,120]
[423330976,1780057908000,-431.083211,0.00033,15]
[423330972,1780057908000,-1193.68085084,0.00033,120]
[423330971,1780057908000,-467.36239711,0.00033,120]
[423330978,1780057908000,-878379.09455948,0.00033,2]
[423330974,1780057908000,-1596.5561687,0.00033,120]
[423330966,1780057908000,-290.48202276,0.00033,120]
[423330951,1780057908000,-363.8691291,0.00033,120]
[423330968,1780057908000,-3494.54726709,0.00033,120]
[423330945,1780057908000,-700.0,0.00032986,30]
[423330947,1780057908000,-481.0,0.00032986,30]
[423330931,1780057908000,-700.0,0.00032986,30]
[423330929,1780057908000,-700.0,0.00032986,30]
[423330927,1780057908000,-700.0,0.00032986,30]
[423330928,1780057908000,-700.0,0.00032986,30]
[423330932,1780057908000,-700.0,0.00032986,30]
[423330930,1780057908000,-700.0,0.00032986,30]
[423330936,1780057908000,-700.0,0.00032986,30]
[423330935,1780057908000,-700.0,0.00032986,30]
[423330937,1780057908000,-700.0,0.00032986,30]
[423330938,1780057908000,-700.0,0.00032986,30]
[423330975,1780057908000,-463.79673118,0.00033,120]
[423330943,1780057908000,-700.0,0.00032986,30]
[423330941,1780057908000,-700.0,0.00032986,30]
[423330944,1780057908000,-700.0,0.00032986,30]
[423330942,1780057908000,-700.0,0.00032986,30]
[423330940,1780057908000,-700.0,0.00032986,30]
[423330952,1780057908000,-182.92483621,0.00033,120]
[423330946,1780057908000,-700.0,0.00032986,30]
[423330948,1780057908000,-1000.0,0.00032999,3]
[423330939,1780057908000,-700.0,0.00032986,30]
[423330950,1780057908000,-1000.0,0.00032999,15]
[423330954,1780057908000,-216.78091482,0.00033,120]
[423330953,1780057908000,-266.92199151,0.00033,120]
[423330981,1780057911000,-2570.29411869,0.00033,2]
[423330982,1780057911000,-1856.54076736,0.00033,2]
[423330980,1780057911000,-538.171961,0.00032877,7]
[423330983,1780057911000,-200.0,0.00025719,2]
[423330979,1780057911000,-193.780905,0.00032877,7]
[423330985,1780057911000,-200.0,0.00027303,2]
[423330984,1780057911000,-200.0,0.00026511,2]
[423330989,1780057911000,-1164.16537526,0.00028355,2]
[423330986,1780057911000,-200.0,0.00028095,2]
[423330988,1780057911000,-200.0,0.00024927,2]
[423330987,1780057911000,-800.68141664,0.00028355,2]
[423330994,1780057914000,-4593.71028193,0.00028355,2]
[423330997,1780057914000,-7510.30193521,0.00012461,2]
[423330999,1780057914000,-717.38826759,0.00012461,2]
[423330998,1780057914000,-484.59109738,0.00012461,2]
[423330996,1780057914000,-112.7556845,0.00028516,30]
[423330995,1780057914000,-515.53292617,0.00028355,2]
[423330990,1780057914000,-200.0,0.00022551,2]
[423330992,1780057914000,-200.0,0.00024135,2]
[423330993,1780057914000,-62.76,0.00028355,2]
[423330991,1780057914000,-200.0,0.00023343,2]
[423331001,1780057915000,-878.31199841,0.00012461,2]
[423331000,1780057915000,-11014.50445949,0.00012461,2]
[423331005,1780057915000,-9220.68032644,0.00012461,2]
[423331006,1780057915000,211.23744552,0.00010083,2]
[423331004,1780057915000,-565.91203727,0.00012461,2]
[423331003,1780057915000,-592.40075735,0.00012461,2]
[423331002,1780057915000,-1502.0,0.00012461,2]
[423331007,1780057941000,2523.0,0.00028,120]
[423331008,1780057943000,-593.11268653,0.00010083,2]
[423331009,1780057973000,-1195.64986795,0.00010083,2]
[423331015,1780058583000,-593.11268653,9.819e-05,2]
[423331016,1780058613000,-593.11268653,9.819e-05,2]
[423331017,1780058614000,161.78,0.00028082,120]
[423331018,1780058641000,-1268.12462694,9.819e-05,2]
[423331019,1780058691000,-184.54672049,9.829e-05,2]
[423331020,1780058718000,-1283.930937,9.361e-05,2]
[423331021,1780058749000,-162.86,8.796e-05,2]
[423331022,1780058795000,-162.86,8.899e-05,2]
[423331023,1780058813000,-151.4551843,8.916e-05,2]
[423331024,1780058825000,150.57763146,8.916e-05,7]
[423331026,1780058827000,-157.1251843,9.002e-05,2]
[423331025,1780058827000,-342.8748157,8.916e-05,2]
[423331028,1780058849000,-500.0,9.028e-05,2]
[423331027,1780058849000,-5.7348157,9.002e-05,2]
[423331030,1780058851000,-500.0,8.799e-05,2]
[423331029,1780058851000,269.98204973,0.00010868,3]
[423331031,1780058852000,-185.81676337,8.799e-05,2]
[423331034,1780058852000,1100.0,0.000107,3]
[423331033,1780058852000,-69.7,9.105e-05,2]
[423331032,1780058852000,-244.48323663,9.028e-05,2]
[423331035,1780058853000,-93.16,9.105e-05,2]
[423331046,1780058853000,-162.86,9.516e-05,2]
[423331047,1780058853000,-139.9825232,9.599e-05,2]
[423331045,1780058853000,-183.8,9.487e-05,2]
[423331044,1780058853000,-13.3574768,9.413e-05,2]
[423331042,1780058853000,-149.5025232,9.413e-05,2]
[423331043,1780058853000,2200.0,0.000108,3]
[423331041,1780058853000,-215.5484138,9.371e-05,2]
[423331040,1780058853000,-134.949063,9.361e-05,2]
[423331039,1780058853000,-500.0,9.361e-05,2]
[423331036,1780058853000,-162.86,9.207e-05,2]
[423331038,1780058853000,-81.12,9.361e-05,2]
[423331037,1780058853000,-162.86,9.31e-05,2]
[423331048,1780058854000,3300.0,0.000109,3]
[423331049,1780058856000,-580.12074957,9.599e-05,2]
[423331050,1780058873000,1000.0,0.00027397,120]
[423331051,1780058904000,-1099.38421651,8.849e-05,2]
[423331053,1780058932000,-1099.38421651,8.849e-05,2]
[423331054,1780058936000,1063.25963628,0.00010899,3]
[423331055,1780058947000,1134.60161554,0.00010868,3]
[423331056,1780058958000,1146.38298594,0.00010868,3]
[423331061,1780058973000,-500.0,8.848e-05,2]
[423331060,1780058973000,-500.0,8.848e-05,2]
[423331062,1780058973000,-500.0,8.848e-05,2]
[423331065,1780058973000,-500.0,8.848e-05,2]
[423331064,1780058973000,-500.0,8.848e-05,2]
[423331063,1780058973000,-317.94915496,8.848e-05,2]
[423331067,1780058973000,-500.0,8.848e-05,2]
[423331068,1780058973000,-500.0,8.848e-05,2]
[423331069,1780058973000,-500.0,8.848e-05,2]
[423331070,1780058973000,-270.74026747,8.848e-05,2]
[423331071,1780058973000,1099.01031239,0.00010931,3]
[423331066,1780058973000,-500.0,8.848e-05,2]
[423331072,1780058982000,500.0,0.00011042,3]
[423331088,1780059032000,-500.0,8.847e-05,2]
[423331081,1780059032000,-500.0,8.846e-05,2]
[423331080,1780059032000,-1000.0,8.716e-05,2]
[423331091,1780059032000,-500.0,8.847e-05,2]
[423331082,1780059032000,-500.0,8.846e-05,2]
[423331083,1780059032000,-335.88939538,8.847e-05,2]
[423331084,1780059032000,-500.0,8.847e-05,2]
[423331086,1780059032000,-580.42940083,8.847e-05,2]
[423331090,1780059032000,-500.0,8.847e-05,2]
[423331096,1780059032000,-1200.0,8.847e-05,2]
[423331092,1780059032000,-500.0,8.847e-05,2]
[423331093,1780059032000,-438.78327194,8.847e-05,2]
[423331101,1780059032000,-2145.38156698,8.849e-05,2]
[423331099,1780059032000,-215.5484138,8.848e-05,2]
[423331098,1780059032000,-174.26848749,8.847e-05,2]
[423331100,1780059032000,-500.0,8.848e-05,2]
[423331097,1780059032000,-300.0,8.847e-05,2]
[423331095,1780059032000,-300.0,8.847e-05,2]
[423331094,1780059032000,-1200.0,8.847e-05,2]
[423331102,1780059032000,-250.0,8.867e-05,2]
[423331137,1780059033000,-420.0,9.732e-05,2]
[423331123,1780059033000,-9999.99,9.67e-05,2]
[423331124,1780059033000,-3013.84,9.67e-05,2]
[423331122,1780059033000,-4999.99,9.67e-05,2]
[423331125,1780059033000,-9999.99,9.67e-05,2]
[423331127,1780059033000,-299.99,9.67e-05,2]
[423331129,1780059033000,-6155.12,9.67e-05,2]
[423331130,1780059033000,-150.99,9.67e-05,2]
[423331131,1780059033000,-426.48028601,9.67e-05,2]
[423331133,1780059033000,-2822.0,9.68e-05,2]
[423331132,1780059033000,-1667.0,9.68e-05,2]
[423331126,1780059033000,-49334.76,9.67e-05,2]
[423331136,1780059033000,-1680.0,9.732e-05,2]
[423331135,1780059033000,-162.86,9.722e-05,2]
[423331140,1780059033000,-682.79763891,9.84e-05,2]
[423331139,1780059033000,-150.0,9.827e-05,2]
[423331128,1780059033000,-24999.99,9.67e-05,2]
[423331134,1780059033000,-1219.0,9.7e-05,2]
[423331117,1780059033000,-300.0,9.612e-05,2]
[423331120,1780059033000,-162.86,9.619e-05,2]
[423331138,1780059033000,-250.0,9.734e-05,2]
[423331103,1780059033000,-150.0,8.886e-05,2]
[423331104,1780059033000,-150.0,8.974e-05,2]
[423331105,1780059033000,-250.0,8.984e-05,2]
[423331106,1780059033000,-150.0,9.062e-05,2]
[423331108,1780059033000,-150.0,9.15e-05,2]
[423331107,1780059033000,-500.0,9.122e-05,2]
[423331119,1780059033000,-376.0,9.617e-05,2]
[423331109,1780059033000,-166.2,9.187e-05,2]
[423331112,1780059033000,-158.0,9.326e-05,2]
[423331113,1780059033000,-500.0,9.396e-05,2]
[423331115,1780059033000,-4281.89672723,9.599e-05,2]
[423331111,1780059033000,-150.0,9.238e-05,2]
[423331114,1780059033000,-11858.0,9.582e-05,2]
[423331116,1780059033000,-174.26848748,9.599e-05,2]
[423331118,1780059033000,-1247.0,9.613e-05,2]
[423331110,1780059033000,-174.26848748,9.223e-05,2]
[423331142,1780059033000,-34105.91,9.85e-05,2]
[423331121,1780059033000,-9999.99,9.67e-05,2]
[423331143,1780059033000,-751.24,9.886e-05,2]
[423331166,1780059033000,-150.0,0.00010959,2]
[423331165,1780059033000,-100203.6455,0.00010957,2]
[423331167,1780059033000,-800.0,0.00011,2]
[423331170,1780059033000,-7635.88999938,0.00011099,2]
[423331168,1780059033000,-1981.6,0.0001103,2]
[423331171,1780059033000,-1304.64600233,0.00011099,2]
[423331169,1780059033000,-500.0,0.00011042,2]
[423331172,1780059033000,-5194.66600908,0.00011099,2]
[423331173,1780059033000,-666.7,0.00011273,2]
[423331174,1780059033000,-166.46,0.00011611,2]
[423331176,1780059033000,-2000.0,0.00011701,2]
[423331177,1780059033000,-3292.0,0.00011775,2]
[423331179,1780059033000,-433.0,0.00011891,2]
[423331180,1780059033000,-168.0,0.00011891,2]
[423331178,1780059033000,-183.8,0.00011859,2]
[423331181,1780059033000,-15396.48959857,0.00012055,2]
[423331141,1780059033000,-500.0,9.84e-05,2]
[423331164,1780059033000,-5000.0,0.00010943,2]
[423331161,1780059033000,-1000.0,0.00010899,2]
[423331175,1780059033000,-250.0,0.00011692,2]
[423331157,1780059033000,-2318.4774967,0.00010783,2]
[423331145,1780059033000,-151.99,9.955e-05,2]
[423331160,1780059033000,-48076.9452508,0.00010869,2]
[423331144,1780059033000,-202.05,9.955e-05,2]
[423331149,1780059033000,-1981.6,0.00010278,2]
[423331151,1780059033000,-2000.0,0.00010531,2]
[423331152,1780059033000,-2860.13758998,0.00010649,2]
[423331146,1780059033000,-200.0,9.955e-05,2]
[423331148,1780059033000,-105686.34796486,0.00010193,2]
[423331147,1780059033000,-1981.6,0.00010027,2]
[423331154,1780059033000,-303.0,0.00010705,2]
[423331153,1780059033000,-166.2,0.00010703,2]
[423331162,1780059033000,-106378.79094027,0.00010932,2]
[423331156,1780059033000,-1981.6,0.00010779,2]
[423331163,1780059033000,-4859.8586952,0.00010932,2]
[423331155,1780059033000,-2351.0,0.00010705,2]
[423331159,1780059033000,-2500.0,0.00010857,2]
[423331150,1780059033000,-1981.6,0.00010529,2]
[423331158,1780059033000,-255.0,0.0001081,2]
[423331228,1780059038000,-500.0,8.846e-05,2]
[423331215,1780059038000,-500.0,8.846e-05,2]
[423331221,1780059038000,-500.0,8.846e-05,2]
[423331223,1780059038000,-500.0,8.846e-05,2]
[423331226,1780059038000,-500.0,8.846e-05,2]
[423331224,1780059038000,-500.0,8.846e-05,2]
[423331225,1780059038000,-500.0,8.846e-05,2]
[423331222,1780059038000,-500.0,8.846e-05,2]
[423331216,1780059038000,-500.0,8.846e-05,2]
[423331219,1780059038000,-500.0,8.846e-05,2]
[423331206,1780059038000,-500.0,8.846e-05,2]
[423331217,1780059038000,-500.0,8.846e-05,2]
[423331214,1780059038000,-500.0,8.846e-05,2]
[423331213,1780059038000,-500.0,8.846e-05,2]
[423331211,1780059038000,-500.0,8.846e-05,2]
[423331212,1780059038000,-500.0,8.846e-05,2]
[423331210,1780059038000,-500.0,8.846e-05,2]
[423331209,1780059038000,-500.0,8.846e-05,2]
[423331207,1780059038000,-500.0,8.846e-05,2]
[423331208,1780059038000,-500.0,8.846e-05,2]
[423331205,1780059038000,-500.0,8.846e-05,2]
[423331229,1780059038000,-500.0,8.846e-05,2]
[423331218,1780059038000,-500.0,8.846e-05,2]
[423331227,1780059038000,-500.0,8.846e-05,2]
[423331220,1780059038000,-500.0,8.846e-05,2]
[423331230,1780059038000,-500.0,8.846e-05,2]
[423331231,1780059038000,-500.0,8.846e-05,2]
[423331253,1780059038000,-153.51,0.00013113,2]
[423331255,1780059038000,-153.51,0.00013357,2]
[423331251,1780059038000,-308.0,0.00012953,2]
[423331254,1780059038000,-153.51,0.00013235,2]
[423331252,1780059038000,-153.51,0.00012991,2]
[423331249,1780059038000,-9794.42,0.00012893,2]
[423331248,1780059038000,-1161.71,0.00012893,2]
[423331246,1780059038000,-2000.0,0.00012871,2]
[423331245,1780059038000,-153.51,0.00012869,2]
[423331247,1780059038000,-166.46,0.00012888,2]
[423331243,1780059038000,-1600.0,0.00012389,2]
[423331250,1780059038000,-8940.53600162,0.00012926,2]
[423331242,1780059038000,-318.28,0.00012329,2]
[423331237,1780059038000,-500.0,8.846e-05,2]
[423331244,1780059038000,-153.51,0.00012747,2]
[423331235,1780059038000,-500.0,8.846e-05,2]
[423331232,1780059038000,-500.0,8.846e-05,2]
[423331233,1780059038000,-500.0,8.846e-05,2]
[423331236,1780059038000,-500.0,8.846e-05,2]
[423331238,1780059038000,-500.0,8.846e-05,2]
[423331240,1780059038000,-5194.66600905,0.00012162,2]
[423331239,1780059038000,-14122.06040143,0.00012055,2]
[423331241,1780059038000,-166.46,0.00012249,2]
[423331234,1780059038000,-500.0,8.846e-05,2]
[423331298,1780059039000,-150.0,0.00014985,2]
[423331294,1780059039000,-5194.66600905,0.00014754,2]
[423331291,1780059039000,-183.8,0.0001423,2]
[423331292,1780059039000,-166.66,0.00014247,2]